[Event "European Women-ch 2023"]
[Site "Petrovac"]
[Date "2023.03.20"]
[Round "3.7"]
[White "Savina, Anastasia"]
[Black "Zaksaite, Salomeja"]
[Result "1/2-1/2"]
[ECO "E94"]
[WhiteElo "2345"]
[BlackElo "2187"]
[Annotator "TA"]
[PlyCount "137"]
[EventDate "2023.03.15"]
[EventType "swiss"]
[EventCountry "MNE"]
[SourceTitle "playchess.com"]
[Source "ChessBase"]
[SourceQuality "1"]
[TimeControl "40/5400+30:1800+30"]

{[%evp 20,137,31,10,41,35,56,8,46,41,43,29,215,121,167,156,143,29,501,498,491,474,433,97,101,79,95,93,84,68,75,81,79,4,6,12,0,12,33,0,79,74,81,75,85,18,18,18,83,72,72,72,175,175,277,277,344,203,197,196,374,344,344,344,344,344,344,203,344,344,344,344,344,344,344,344,344,344,344,344,344,344,344,344,344,344,344,344,344,344,344,344,344,344,344,344,344,344,344,344,344,344,344,344,344,143,143,143,143,28,191,191,351,40,351,40,351,191,351,0]} 1. Nf3 {[%emt 0:00:15]} Nf6 {[%emt 0:01:19]} 2. c4 {[%emt 0:00:14]} g6 {[%emt 0:00:21]} 3. Nc3 {[%emt 0:00:11]} Bg7 {[%emt 0:02:25]} 4. e4 {[%emt 0:00:15]} d6 {[%emt 0:00:05]} 5. d4 {[%emt 0:00:12]} O-O {[%emt 0:00:06]} 6. Be2 {[%emt 0:00:39]} e5 {[%emt 0:00:29]} 7. O-O {[%emt 0:00:11]} exd4 {[%emt 0:01:21]} 8. Nxd4 {[%emt 0:00:06]} Re8 {[%emt 0:00:31]} 9. f3 {[%emt 0:00:19]} Nc6 {[%emt 0:00:39]} 10. Be3 {[%emt 0:01:39]} Nh5 {[%emt 0:02:00]} 11. Nc2 {[%emt 0:02:48]} f5 {[%emt 0:06:27] E94: King's Indian: Classical: 6 Be2 e5 7 0-0: Various Black 7th moves.} 12. Qd2 {[%emt 0:00:57]} Be6 {[%emt 0:14:49]} 13. Nd5 {[%emt 0:10:04]} (13. Bg5 $14 Qd7 14. Nd5) 13... Qd7 {[%emt 0:10:53] The position is equal.} (13... Bxb2 14. Rab1 Bg7 15. Rxb7 $16) 14. Bg5 {[%emt 0:08:32] [#]} Rac8 $146 {[%emt 0:08:27]} (14... Bxb2 15. Rab1 Bg7 16. Rxb7 $16) ({Predecessor:} 14... Rf8 15. exf5 Bxf5 16. Nce3 Be6 17. f4 Nd4 18. f5 Bxd5 19. Nxd5 Nxf5 20. g4 c6 21. gxf5 cxd5 22. Qxd5+ {1-0 Mareco,S (2585)-Peredun,A (2257) Durban op 2014 (6)}) 15. Rae1 {[%emt 0:25:20]} Bxb2 $2 {[%emt 0:24:10]} (15... fxe4 $11 {and Black is okay.} 16. b3 e3 17. Bxe3 Qf7) 16. f4 {[%emt 0:17:43]} (16. exf5 $1 $18 Bxf5 17. Nce3) 16... Qg7 {[%emt 0:07:32]} (16... fxe4 $2 17. Bxh5 Qg7 18. Bd1 $18) (16... Qf7 $16) 17. Bxh5 $1 $18 {[%emt 0:06:19]} gxh5 {[%emt 0:00:04]} 18. Rb1 {[%emt 0:17:49]} (18. Rf3 $1 $16 {[%cal Rf3g3]}) 18... Rf8 $2 {[%emt 0:10:47][%mdl 8192] [#]} (18... Bxd5 $1 $11 19. Qxd5+ Kh8) 19. e5 $1 {[%emt 0:02:14][%mdl 512]} dxe5 {[%emt 0:00:05]} 20. Rxb2 {[%emt 0:00:22]} exf4 {[%emt 0:00:03] [#]} 21. Bf6 {[%emt 0:03:39]} Rxf6 $16 {[%emt 0:00:07]} 22. Nxf6+ {[%emt 0:00:03]} Qxf6 {[%emt 0:00:15]} 23. Rxb7 {[%emt 0:00:12]} Bxc4 {[%emt 0:00:54]} 24. Rxf4 {[%emt 0:01:03]} Rd8 {[%emt 0:02:34]} 25. Qe1 {[%emt 0:00:20]} Bd3 {[%emt 0:00:44]} 26. Nb4 {[%emt 0:01:12]} (26. Qg3+ $16 Kh8 27. Ne1) 26... Be4 $11 {[%emt 0:03:41]} 27. Nxc6 {[%emt 0:00:23]} (27. Rxc7 $2 Qd4+ 28. Rf2 Nxb4 $19) (27. Qxe4 Rd1+ 28. Kf2 Qb2+ 29. Nc2 (29. Qe2 $2 Rd2 $19) 29... Rd2+ 30. Kg3 Qg7+ $17) 27... Qxc6 {[%emt 0:00:31]} 28. Rb3 {[%emt 0:00:55]} Qc2 {[%emt 0:01:20][%csl Ge4][%cal Rc2g2]} 29. Qg3+ {[%emt 0:00:31]} Kh8 {[%emt 0:01:47]} (29... Kf7 $11 30. Rc3 Rd1+ 31. Rf1 Rxf1+ 32. Kxf1 Qd1+ 33. Qe1 Qd6) 30. Qc3+ $1 $16 {[%emt 0:00:30]} Qxc3 {[%emt 0:00:05]} 31. Rxc3 {[%emt 0:00:01][%mdl 4096] Endgame KRR-KRB} Rd2 {[%emt 0:00:35][%csl LRa2,LRg2] [#]} 32. Rxc7 {[%emt 0:00:58]} ({White should play} 32. Kf1 $1 $16) 32... Rxg2+ $11 {[%emt 0:00:17]} 33. Kf1 {[%emt 0:00:02][%cal Of4e4]} Rxa2 {[%emt 0:00:25]} (33... Rxh2 $11 {keeps the balance.} 34. Rxa7 h4) 34. Rf2 {[%emt 0:00:22]} Ra1+ {[%emt 0:00:30]} 35. Ke2 {[%emt 0:00:02][%mdl 1024] White has strong compensation. White is more active.} h4 {[%emt 0:01:03]} (35... Ra3 $16) 36. Ke3 $18 {[%emt 0:00:27] aiming for Rd2.} Rg1 {[%emt 0:00:36]} (36... Ra5 {was called for.} 37. Rb2 Bd5 38. Rb8+ Bg8) 37. Rd2 {[%emt 0:00:57]} (37. Rxa7 $6 Rg7 38. Ra6 Rc7 $18) 37... Bb1 {[%emt 0:00:32]} 38. Kf4 {[%emt 0:00:35]} (38. Rxa7 h3 39. Rdd7 f4+ 40. Kxf4 Rg8) (38. Rb7 $142 Be4 39. Rxa7) 38... Rg4+ {[%emt 0:00:10]} 39. Ke5 {[%emt 0:00:07] Rd8+ would be deadly.} h3 $2 {[%emt 0:00:47]} (39... Rg8 40. Rxa7 h3) 40. Rxa7 {[%emt 0:00:00]} Rg8 {[%emt 0:00:00]} 41. Rb7 {[%emt 0:15:07]} Be4 {[%emt 0:03:48]} 42. Rc7 {[%emt 0:00:33]} Bb1 {[%emt 0:04:30]} 43. Rd1 {[%emt 0:07:49]} (43. Rb2 $142 Be4 44. Rd2) 43... Rb8 {[%emt 0:01:59]} (43... Re8+ {keeps fighting.} 44. Kf4 Ba2) 44. Rdd7 {[%emt 0:06:53]} f4 {[%emt 0:00:05]} 45. Rb7 {[%emt 0:00:16] Prevents Rb5+} ({But not} 45. Kxf4 Rb4+ 46. Ke5 Rb5+ 47. Rd5 Rb8) 45... Rxb7 {[%emt 0:00:28]} 46. Rxb7 {[%emt 0:00:03] KR-KB} Bc2 {[%emt 0:00:18]} 47. Kxf4 {[%emt 0:02:30]} h6 {[%emt 0:01:58]} 48. Ke5 {[%emt 0:00:15]} Bd3 {[%emt 0:01:12]} 49. Kf6 {[%emt 0:00:14]} Bc2 {[%emt 0:00:49]} 50. Rb4 {[%emt 0:01:00]} Kh7 {[%emt 0:00:48]} 51. Rc4 {[%emt 0:00:07]} ({Don't play} 51. Rh4 Bg6 52. Rxh3 Bb1) 51... Bb1 {[%emt 0:01:05]} 52. Rh4 {[%emt 0:00:48]} Bc2 {[%emt 0:00:11]} 53. Rxh3 {[%emt 0:00:07]} Bb1 {[%emt 0:00:10]} 54. Rc3 {[%emt 0:00:42]} Be4 {[%emt 0:01:08]} 55. Rc7+ {[%emt 0:00:10]} Kg8 {[%emt 0:00:36]} 56. Ke5 {[%emt 0:01:50]} Bg6 {[%emt 0:01:02]} 57. Rb7 {[%emt 0:00:46]} Bc2 {[%emt 0:00:26]} 58. Kf4 {[%emt 0:01:15]} Bd3 {[%emt 0:01:10]} 59. Kg4 {[%emt 0:00:07] Black must now prevent Kh5.} Bg6 {[%emt 0:01:12]} 60. Rc7 {[%emt 0:00:16]} Kh8 {[%emt 0:00:04]} 61. h4 {[%emt 0:01:06]} Kg8 {[%emt 0:00:09]} 62. h5 {[%emt 0:00:22]} (62. Rb7 $18 {has better winning chances.}) 62... Bd3 $16 {[%emt 0:00:53]} 63. Kf4 {[%emt 0:00:07]} Kh8 {[%emt 0:00:44]} 64. Ke5 {[%emt 0:00:06]} (64. Re7 $16) 64... Kg8 $2 {[%emt 0:00:08]} (64... Be2 $1 $11 {and Black stays safe.}) 65. Kf6 $18 {[%emt 0:00:03] Strongly threatening Rg7+.} Kh8 $2 {[%emt 0:00:43]} (65... Be2 66. Kg6 Bd3+ 67. Kxh6 Kf8 68. Rc8+ Kf7 69. Rc7+ Kg8) 66. Rg7 $2 {[%emt 0:00:08]} (66. Rd7 $18 Be4 67. Re7) 66... Bc2 $2 {[%emt 0:00:20][%mdl 8192]} (66... Be2 $14) 67. Kf7 $2 {[%emt 0:00:48]} (67. Rg2 $18 Bd3 68. Rd2) 67... Bd3 $2 {[%emt 0:10:32][%mdl 8192] [#]} (67... Bd1 $14) 68. Rg6 {[%emt 0:00:45]} Kh7 $2 {[%emt 0:00:06]} (68... Bxg6+ {leads to mate.} 69. hxg6 h5 70. g7+ Kh7 71. g8=Q+ Kh6 72. Qg7#) (68... Bc4+ 69. Kf6 Bd3 70. Rxh6+ Kg8) 69. Rg7+ $2 {[%emt 0:00:17] Weighted Error Value: White=0.30/Black=0.35} ({White must play} 69. Rg2 $18) 1/2-1/2

[Event "European Women-ch 2023"]
[Site "Petrovac"]
[Date "2023.03.20"]
[Round "3.7"]
[White "Mkrtchyan, Mariam"]
[Black "Maltsevskaya, Aleksandra"]
[Result "0-1"]
[ECO "E60"]
[WhiteElo "2343"]
[BlackElo "2388"]
[Annotator "TA"]
[PlyCount "62"]
[EventDate "2023.03.15"]
[EventType "swiss"]
[EventCountry "MNE"]
[SourceTitle "playchess.com"]
[Source "ChessBase"]
[SourceQuality "1"]
[TimeControl "40/5400+30:1800+30"]

{[%evp 12,62,25,16,17,20,26,32,24,10,14,0,14,8,19,0,29,0,0,0,0,0,14,16,8,-25,-25,-40,-25,-90,-90,-155,-126,-491,-472,-488,-479,-447,-227,-256,-222,-1572,-1545,-1537,-1554,-1587,-1618,-1496,-1458,-29997,-29998,-29998,-29999]} 1. d4 {[%emt 0:00:03]} Nf6 {[%emt 0:00:08][%cal Bg8f6,Bf6e4,Be4c5,Bc5e6][%mdl 32]} 2. c4 {[%emt 0:00:11]} g6 {[%emt 0:00:07]} 3. Nf3 {[%emt 0:00:06]} Bg7 {[%emt 0:00:07]} 4. g3 {[%emt 0:00:06]} c5 {[%emt 0:00:20]} 5. Bg2 {[%emt 0:00:42]} Qa5+ {[%emt 0:00:08]} 6. Nc3 {[%emt 0:05:31]} Ne4 {[%emt 0:00:23]} 7. Qd3 {[%emt 0:01:53]} cxd4 {[%emt 0:00:09] E60: King's Indian: Unusual lines and Fianchetto Variation without Nc3.} 8. Nxd4 {[%emt 0:00:17]} Nc5 {[%emt 0:00:07]} 9. Qd1 {[%emt 0:01:01]} Nc6 {[%emt 0:00:09] White is slightly better.} 10. e3 {[%emt 0:03:47]} Ne6 {[%emt 0:00:09][%cal Rc6d4]} 11. Nde2 {[%emt 0:00:59] [#]} Qb4 $146 {[%emt 0:00:48]} ({Predecessor:} 11... Ne5 12. O-O Nxc4 13. Qc2 Qd8 14. Nd5 Nb6 15. Nxb6 Qxb6 16. a4 O-O 17. Nc3 Qd8 {½-½ Martynkova,O (2180)-Gaponenko,I (2347) UKR-ch (Women) 81st 2021 (4)}) 12. Bd5 {[%emt 0:03:48]} Nc7 {[%emt 0:01:41]} 13. a3 {[%emt 0:02:48]} Qd6 {[%emt 0:00:09]} 14. Nb5 {[%emt 0:10:52]} Nxb5 {[%emt 0:01:03]} 15. cxb5 {[%emt 0:00:06]} e6 {[%emt 0:07:45]} 16. bxc6 {[%emt 0:08:16]} exd5 {[%emt 0:00:07]} 17. cxb7 {[%emt 0:00:22]} (17. c7 Qxc7 18. O-O O-O $15) 17... Bxb7 {[%emt 0:00:07][%cal Od5d4]} 18. Nd4 {[%emt 0:00:08]} Ba6 {[%emt 0:01:18]} 19. b3 {[%emt 0:01:50]} O-O {[%emt 0:01:21]} 20. Bb2 {[%emt 0:02:25]} (20. f3 $11) 20... Qe5 $1 $17 {[%emt 0:06:42] Black is more active.} 21. Qg4 {[%emt 0:05:06]} ({Better is} 21. Qd2) 21... Rac8 {[%emt 0:02:49]} 22. Rd1 $2 {[%emt 0:12:47][%mdl 8192] [#] White does not recover from this.} (22. Rb1 $17 {is more resistant.}) 22... Rc2 $1 $19 {[%emt 0:13:45][%mdl 512]} 23. Rd2 {[%emt 0:00:51] [#]} (23. Nxc2 $2 {perishes.} Qxb2 24. Nd4 Bxd4 25. Rxd4 Rc8) 23... Rfc8 {[%emt 0:02:36][%cal Oc2b2] ...Rxb2! is the strong threat.} 24. Kd1 {[%emt 0:03:17]} (24. Qd1 Rxb2) 24... R2c5 {[%emt 0:32:59]} ({Not} 24... Qe4 25. Qxe4 Rxd2+ 26. Kxd2 $11) (24... f5 25. Qf4 Rxd2+ 26. Kxd2 $11) (24... Bd3 $142 {[%cal Oc2b2] Hoping for ...Rxb2!} 25. Qf4 Qxf4 26. gxf4 Bxd4 27. exd4 Be4 28. Rxc2 Rxc2) 25. Qf4 {[%emt 0:09:09]} Qe8 $40 {[%emt 0:01:04][%mdl 128] And now ...R8c7 would win. White is in trouble.} 26. Ne2 $2 {[%emt 0:13:45]} (26. Re1) 26... Bxb2 {[%emt 0:01:05]} 27. Rxb2 {[%emt 0:00:00] [#]} d6 $1 {[%emt 0:00:25][%mdl 512] White must now prevent ...Qc6.} 28. Qa4 {[%emt 0:04:57] White is weak on the light squares} (28. Nd4 Rc1+) 28... Bb5 {[%emt 0:01:13]} 29. Qd4 {[%emt 0:00:47]} Qc6 {[%emt 0:00:08][%cal Oc5c1] ( -> ...Rc1+!)} 30. Re1 {[%emt 0:05:01] [#]} Rc1+ $1 {[%emt 0:00:07][%mdl 576] Skewer, Back Rank} 31. Kd2 {[%emt 0:00:21] [#]} Qc2+ $3 {[%emt 0:00:06][%mdl 512] Magnificent play by Maltsevskaya!   Weighted Error Value: White=0.70/Black=0.14 (very precise)} 0-1

[Event "European Women-ch 2023"]
[Site "Petrovac"]
[Date "2023.03.20"]
[Round "3.7"]
[White "Jarocka, Liwia"]
[Black "Aydin, Gulenay"]
[Result "1-0"]
[ECO "E71"]
[WhiteElo "2181"]
[BlackElo "2039"]
[Annotator "TA"]
[PlyCount "85"]
[EventDate "2023.03.15"]
[EventType "swiss"]
[EventCountry "MNE"]
[SourceTitle "playchess.com"]
[Source "ChessBase"]
[SourceQuality "1"]
[TimeControl "40/5400+30:1800+30"]

{[%evp 9,85,36,46,35,30,35,48,41,57,49,88,0,0,-2,13,19,43,19,63,56,50,34,134,117,120,23,38,37,25,0,13,0,0,4,7,11,1,0,0,0,9,0,0,-65,-52,-49,-21,-86,-60,-78,0,0,0,0,0,-32,115,111,108,105,320,282,980,945,1571,1453,2789,2564,29979,29980,29981,29982,29982,29983,29990,29987,29987,29988]} 1. d4 {[%emt 0:00:02]} Nf6 {[%emt 0:04:28]} 2. c4 {[%emt 0:00:11]} g6 {[%emt 0:00:05]} 3. Nc3 {[%emt 0:00:12]} Bg7 {[%emt 0:00:07]} 4. e4 {[%emt 0:00:12]} d6 {[%emt 0:00:05]} 5. h3 {[%emt 0:00:15]} Nbd7 {[%emt 0:01:21]} 6. Be3 {[%emt 0:00:54] E71: King's Indian: 4 e4 d6 5 h3.} e5 {[%emt 0:00:57]} 7. d5 {[%emt 0:00:50]} Nc5 {[%emt 0:01:38]} 8. Qc2 {[%emt 0:00:54] White is slightly better.} a5 {[%emt 0:00:35]} 9. g4 {[%emt 0:00:38]} O-O {[%emt 0:03:08] [#]} 10. g5 $146 {[%emt 0:01:48]} ({Better is} 10. O-O-O $16) ({Predecessor:} 10. Nge2 c6 11. Ng3 cxd5 12. cxd5 Bd7 13. Be2 Rc8 14. Rc1 a4 15. Qd2 b5 16. f3 {1-0 Grandelius,N (2642)-Shyam,S (2552) Douglas IoM op 2016 (9)}) 10... Nh5 $1 $11 {[%emt 0:11:37]} 11. O-O-O {[%emt 0:05:18]} Bd7 {[%emt 0:03:04]} 12. h4 {[%emt 0:09:35]} a4 {[%emt 0:07:48]} 13. Bh3 {[%emt 0:12:25]} Qe8 {[%emt 0:14:04]} 14. Bxd7 {[%emt 0:04:16]} Qxd7 {[%emt 0:00:20]} 15. Nge2 {[%emt 0:00:22][%cal Bg1e2,Be2c3,Bc3e4][%mdl 32]} f5 {[%emt 0:09:46]} (15... a3 $14) 16. Bxc5 $16 {[%emt 0:07:37]} dxc5 {[%emt 0:01:29] [#]} 17. d6 {[%emt 0:00:16]} cxd6 $11 {[%emt 0:03:44]} 18. Nb5 {[%emt 0:02:27]} fxe4 {[%emt 0:09:36]} 19. Nec3 {[%emt 0:01:54]} a3 {[%emt 0:04:16]} 20. Nxe4 {[%emt 0:05:37]} axb2+ {[%emt 0:00:48]} 21. Kxb2 {[%emt 0:04:25]} Nf4 {[%emt 0:03:07] And now ...d5 would win.} 22. Rxd6 {[%emt 0:04:40]} Qg4 {[%emt 0:03:31]} 23. Qd1 {[%emt 0:07:56]} Qf5 {[%emt 0:05:55]} 24. Nbc3 {[%emt 0:01:02]} Qf7 {[%emt 0:06:57]} 25. Nd5 {[%emt 0:10:45][%cal Od6d7]} Kh8 {[%emt 0:00:05]} (25... Nxd5 {simplifies} 26. Qxd5 Qxd5 27. cxd5 Ra4) 26. h5 {[%emt 0:04:52]} (26. Nxc5 $2 Nxd5 27. Rxd5 Qxf2+ 28. Qd2 Qf3 $19) ({White should play} 26. Re1 $11) 26... Nxh5 {[%emt 0:01:26]} (26... gxh5 $5 {[%cal Rf4d5]} 27. Nb6 Ra6 $17) 27. Qc2 {[%emt 0:10:14]} (27. Nxc5 Qxf2+ 28. Kb3 Qxa2+ 29. Kc3 Qa5+ 30. Nb4 e4+ 31. Rd4 Qxc5 32. Nc2 Qa5+ 33. Kb3 Qa4+ 34. Kc3 Rf2) 27... Qf3 {[%emt 0:01:07] Strongly threatening ...Rxa2+.} 28. Rh4 {[%emt 0:01:00]} (28. Rd1 $11) 28... Ra6 {[%emt 0:02:03][%cal Ba8a6,Ba6b6,Bb6b4][%mdl 32] ...Rxd6 is the strong threat.} 29. Rd7 {[%emt 0:00:29] [#]} Rfa8 {[%emt 0:00:30]} (29... Nf4 $1 $17 30. Kb1 Nxd5 31. Rxd5 (31. cxd5 $2 {perishes.} Rb6+ 32. Ka1 Rb4 $19) 31... Rb6+ 32. Ka1 Qxf2 33. Qxf2 Rxf2) 30. Ndc3 {[%emt 0:01:20] Excellent horsemanship.} Rb6+ {[%emt 0:00:40]} 31. Ka1 {[%emt 0:00:19]} Rb4 {[%emt 0:00:16]} 32. Rd3 {[%emt 0:02:08]} (32. Nxc5 $2 {loses.} e4 33. Rxg7 Nxg7 34. Rxe4 b5 $19) 32... Qg2 {[%emt 0:00:57]} (32... Qf7 $15 {stays ahead.}) 33. Qd1 $16 {[%emt 0:00:29]} Rf8 {[%emt 0:00:49] [#]} (33... Rxc4 $2 34. Rd8+ Bf8 35. Rxa8 $18) 34. Nd5 $1 {[%emt 0:00:37]} b5 $2 {[%emt 0:00:38] This costs Black the game.} 35. Nxb4 $18 {[%emt 0:00:30]} cxb4 $2 {[%emt 0:00:28]} (35... bxc4 36. Rc3 cxb4 37. Rxc4 Nf4 38. Rxb4 Nh3) 36. Rg4 {[%emt 0:00:49]} Qh2 {[%emt 0:00:15]} 37. cxb5 {[%emt 0:00:20][%cal Bc4b5,Bb5b6][%mdl 32]} Nf4 {[%emt 0:00:34]} 38. Rd8 {[%emt 0:00:14] b6 would kill now.} Ne6 {[%emt 0:00:43]} 39. Rxf8+ {[%emt 0:00:07] White mates.} Bxf8 {[%emt 0:00:17]} 40. b6 {[%emt 0:00:00]} Nc5 {[%emt 0:00:00]} 41. Nxc5 {[%emt 0:03:45][%mdl 64] Remove Defender} Bxc5 {[%emt 0:00:55]} 42. Qd8+ {[%emt 0:00:15]} Kg7 {[%emt 0:00:12]} 43. Qc7+ {[%emt 0:00:06] Weighted Error Value: White=0.16 (very precise) /Black=0.42} 1-0

[Event "European Women-ch 2023"]
[Site "Petrovac"]
[Date "2023.03.20"]
[Round "3.8"]
[White "Beydullayeva, Govhar"]
[Black "Garcia Martin, Marta"]
[Result "1-0"]
[ECO "D38"]
[WhiteElo "2388"]
[BlackElo "2306"]
[Annotator "TA"]
[PlyCount "63"]
[EventDate "2023.03.15"]
[EventType "swiss"]
[EventCountry "MNE"]
[SourceTitle "playchess.com"]
[Source "ChessBase"]
[SourceQuality "1"]
[TimeControl "40/5400+30:1800+30"]

{[%evp 15,63,27,27,8,8,-9,-5,-11,-11,-11,-9,-11,-8,-8,-3,-8,-6,-14,0,0,0,-7,0,0,4,0,0,-8,0,0,0,0,0,-33,-27,-19,-11,-15,0,0,0,0,17,22,222,227,572,570,970,963]} 1. d4 {[%emt 0:00:05]} Nf6 {[%emt 0:00:12]} 2. c4 {[%emt 0:00:04]} e6 {[%emt 0:00:06]} 3. Nf3 {[%emt 0:00:04]} d5 {[%emt 0:00:14]} 4. Nc3 {[%emt 0:00:05]} Bb4 {[%emt 0:00:26]} 5. Bg5 {[%emt 0:00:36]} h6 {[%emt 0:00:20]} 6. Bxf6 {[%emt 0:00:21]} Qxf6 {[%emt 0:00:08]} 7. e3 {[%emt 0:01:08]} O-O {[%emt 0:00:31]} 8. Rc1 {[%emt 0:00:18]} Nc6 {[%emt 0:01:41]} 9. Qb3 {[%emt 0:06:49] D38: Queen's Gambit Declined: Ragozin Defence (4 Nf3 Bb4).} a5 {[%emt 0:04:49][%cal Ba7a5,Ba5a4][%mdl 32]} 10. cxd5 {[%emt 0:06:41]} a4 {[%emt 0:03:25][%mdl 64] [#] Deflection} 11. Qc2 $146 {[%emt 0:09:11] The position is equal.} ({Predecessor:} 11. Qd1 exd5 12. a3 Bxc3+ 13. Rxc3 Bg4 14. Be2 Qd6 15. Qc2 f5 16. Rc5 Kh8 17. h3 {½-½ Ftacnik,L (2570)-Eng,H (2350) Berliner Sommer 02nd 1984 (2)}) 11... exd5 {[%emt 0:00:40]} 12. a3 {[%emt 0:01:51]} Bf5 {[%emt 0:12:49]} 13. Qd1 {[%emt 0:05:10]} Bxc3+ {[%emt 0:20:08]} 14. Rxc3 {[%emt 0:00:01]} Ne7 {[%emt 0:00:26]} 15. Ne5 {[%emt 0:09:28]} c6 {[%emt 0:21:46]} 16. Bd3 {[%emt 0:00:06]} Qe6 {[%emt 0:01:46]} 17. O-O {[%emt 0:03:19]} Rfc8 {[%emt 0:03:29]} 18. Qc2 {[%emt 0:03:42]} Ra5 {[%emt 0:09:34]} 19. Bxf5 {[%emt 0:20:15]} Qxf5 {[%emt 0:01:35]} 20. Nd3 {[%emt 0:01:25][%cal Be5d3,Bd3c5,Bc5e4,Be4d6,Bd6f5,Bf5e7][%mdl 32]} Rca8 {[%emt 0:01:01]} 21. f3 {[%emt 0:03:07]} Nc8 {[%emt 0:00:59]} 22. e4 {[%emt 0:07:05]} dxe4 {[%emt 0:02:19]} 23. Nc5 {[%emt 0:07:25]} Qf6 {[%emt 0:01:14]} 24. Qxe4 {[%emt 0:02:47]} Nd6 {[%emt 0:00:08]} 25. Qe5 {[%emt 0:00:15]} Qd8 {[%emt 0:06:18] aiming for ...b6.} 26. d5 {[%emt 0:03:10]} b6 {[%emt 0:02:13]} 27. Rd1 $1 {[%emt 0:02:03]} Rc8 {[%emt 0:04:15]} (27... Rxc5 $2 28. Rxc5 bxc5 29. dxc6 $18) ({Much less strong is} 27... bxc5 28. dxc6 c4 29. Qxd6 Qb6+ 30. Qd4 $16) 28. Ne4 {[%emt 0:03:40]} Ne8 {[%emt 0:01:19][%cal Ra5d5]} 29. Rcd3 {[%emt 0:02:28]} (29. Rxc6 $2 {is the wrong capture.} Rxc6 30. Nc3 Rd6 $19) 29... Nc7 $2 {[%emt 0:00:08]} (29... cxd5 $11 {and Black stays safe.} 30. Rxd5 Rxd5 31. Qxd5 Qxd5 32. Rxd5 Rc1+ 33. Kf2 Rc2+ 34. Rd2 Rxd2+ 35. Nxd2 Nc7) 30. Nd6 $18 {[%emt 0:00:44]} Rb8 $2 {[%emt 0:00:06] [#]} (30... Nxd5 {is more resistant.} 31. Nb7 Qf8) 31. Nf5 $1 {[%emt 0:00:18][%csl Gf5][%cal Re5g7]} Ne8 {[%emt 0:00:38]} 32. Ne7+ {[%emt 0:00:12] Weighted Error Value: White=0.05 (flawless) /Black=0.44} 1-0

[Event "European Women-ch 2023"]
[Site "Petrovac"]
[Date "2023.03.20"]
[Round "3.8"]
[White "Lach, Aleksandra"]
[Black "Bluebaum, Johanna"]
[Result "1-0"]
[ECO "C01"]
[WhiteElo "2170"]
[BlackElo "1954"]
[Annotator "TA"]
[PlyCount "47"]
[EventDate "2023.03.15"]
[EventType "swiss"]
[EventCountry "MNE"]
[SourceTitle "playchess.com"]
[Source "ChessBase"]
[SourceQuality "1"]
[TimeControl "40/5400+30:1800+30"]

{[%evp 10,47,0,-17,-7,-18,17,-7,20,19,25,10,21,12,13,26,19,37,61,45,70,22,35,29,147,117,258,81,252,241,561,585,1369,1298,1716,1704,29986,29987,29990,29991]} 1. e4 {[%emt 0:00:11]} e6 {[%emt 0:00:06]} 2. d4 {[%emt 0:00:59]} d5 {[%emt 0:00:06]} 3. Nc3 {[%emt 0:00:28]} Nf6 {[%emt 0:02:31]} 4. exd5 {[%emt 0:00:44]} exd5 {[%emt 0:00:22]} 5. Bg5 {[%emt 0:00:13]} Be7 {[%emt 0:00:43]} 6. Qd2 {[%emt 0:00:29]} h6 {[%emt 0:07:57] C01: French: Exchange Variation.} 7. Bf4 {[%emt 0:09:54]} c6 {[%emt 0:01:12]} 8. O-O-O {[%emt 0:04:23]} Bf5 {[%emt 0:00:57] The position is equal.} 9. f3 {[%emt 0:00:40] [#]} Nbd7 $146 {[%emt 0:02:00][%cal Bb8d7,Bd7b6,Bb6c4][%mdl 32]} ({Predecessor:} 9... h5 10. Bd3 Bxd3 {½-½ Waagener,U-Vatter,H (2186) GER-ch Seniors 65 34th 2022 (4)}) 10. Re1 {[%emt 0:03:03]} (10. g4 $5 {[%cal Rg4f5]} Bg6 11. h4 $11) 10... O-O {[%emt 0:01:02]} 11. g4 {[%emt 0:01:34]} Bh7 {[%emt 0:02:15]} 12. h4 {[%emt 0:07:58]} h5 {[%emt 0:07:57]} 13. Bd3 {[%emt 0:31:44]} (13. g5 $5 Ne8 $8 14. Nge2 $11) 13... Bxd3 {[%emt 0:05:49]} 14. Qxd3 {[%emt 0:02:57]} Nb6 {[%emt 0:10:28]} 15. Kb1 {[%emt 0:11:27] White has more active pieces. The black rooks are badly placed.} (15. Nh3 $14) 15... Nc4 {[%emt 0:16:04]} 16. Bc1 {[%emt 0:01:15]} g6 {[%emt 0:04:56]} ({Reject} 16... hxg4 17. Nge2 $15) (16... Bb4 $11) 17. Nh3 {[%emt 0:04:24] Hoping for Nf4.} Bd6 {[%emt 0:02:19]} (17... Qc7 $16 {was called for.}) 18. Ng5 $2 {[%emt 0:03:07]} (18. Bg5 $18 {has better winning chances.}) 18... Re8 $2 {[%emt 0:01:31]} (18... hxg4 $2 19. h5 Nxb2 20. Bxb2 $18) (18... Qd7 $16) 19. Reg1 $18 {[%emt 0:06:08] [#] And now gxh5 would win.} hxg4 {[%emt 0:07:25]} (19... Kg7 {is tougher.} 20. gxh5 Nxh5) 20. h5 {[%emt 0:00:20]} Qe7 {[%emt 0:02:25]} 21. hxg6 {[%emt 0:00:57]} fxg6 {[%emt 0:01:05]} 22. Rh6 {[%emt 0:00:34]} g3 {[%emt 0:04:23]} 23. Rxg6+ {[%emt 0:00:33]} Kf8 {[%emt 0:00:25]} 24. Qf5 {[%emt 0:02:10] Weighted Error Value: White=0.20 (precise) /Black=0.97} 1-0